[Event "*** SCC Grand Prix: Titled Tuesday Blitz"]
[Site "Chess.com"]
[Date "2020.09.29"]
[Round "3"]
[White "ClydeHillKid"]
[Black "Korchmar_Vasiliy"]
[Result "0-1"]
[WhiteElo "2374"]
[BlackElo "2579"]
[TimeControl "180+1"]
[EndTime "10:28:12 PDT"]
[Termination "Korchmar_Vasiliy won by resignation"]

1. e4 {[%clk 0:03:00.9]} 1... c5 {[%clk 0:02:59.9]} 2. Nf3 {[%clk 0:03:00.1]}
2... d6 {[%clk 0:03:00.5]} 3. d4 {[%clk 0:02:59.9]} 3... cxd4 {[%clk 0:03:01.4]}
4. Nxd4 {[%clk 0:03:00.5]} 4... Nf6 {[%clk 0:03:02.1]} 5. Nc3 {[%clk 0:02:59.7]}
5... Nc6 {[%clk 0:03:02.7]} 6. Bc4 {[%clk 0:02:57.6]} 6... e6 {[%clk 0:03:02.6]}
7. O-O {[%clk 0:02:56.7]} 7... Be7 {[%clk 0:02:53]} 8. Be3 {[%clk 0:02:56.1]}
8... O-O {[%clk 0:02:52.8]} 9. h3 {[%clk 0:02:49.3]} 9... Bd7 {[%clk 0:02:42.4]}
10. Qe2 {[%clk 0:02:45]} 10... Rc8 {[%clk 0:02:42.2]} 11. Rad1 {[%clk
0:02:36.5]} 11... Nxd4 {[%clk 0:02:21.1]} 12. Bxd4 {[%clk 0:02:30.8]} 12... Qc7
{[%clk 0:02:19.4]} 13. Bb3 {[%clk 0:02:27.8]} 13... a6 {[%clk 0:02:17.6]} 14. g4
{[%clk 0:02:19.7]} 14... Bc6 {[%clk 0:02:07.4]} 15. f4 {[%clk 0:02:05.5]} 15...
b5 {[%clk 0:02:06.1]} 16. a3 {[%clk 0:02:02.7]} 16... Qb7 {[%clk 0:02:06.3]} 17.
f5 {[%clk 0:01:52]} 17... e5 {[%clk 0:02:02.5]} 18. Be3 {[%clk 0:01:25.9]} 18...
Nxe4 {[%clk 0:02:02.4]} 19. Nxe4 {[%clk 0:01:18.3]} 19... Bxe4 {[%clk
0:02:03.3]} 20. g5 {[%clk 0:01:17.9]} 20... d5 {[%clk 0:01:50.3]} 21. f6 {[%clk
0:01:09.5]} 21... Bc5 {[%clk 0:01:50.7]} 22. Bxc5 {[%clk 0:01:05.8]} 22... Rxc5
{[%clk 0:01:51.6]} 23. c3 {[%clk 0:00:42.8]} 23... Qb6 {[%clk 0:01:47]} 24. Qe3
{[%clk 0:00:35.6]} 24... Rd8 {[%clk 0:00:42]} 25. fxg7 {[%clk 0:00:24.3]} 25...
Rc6 {[%clk 0:00:41.3]} 26. Qxb6 {[%clk 0:00:20.3]} 26... Rxb6 {[%clk 0:00:42.2]}
27. Rf6 {[%clk 0:00:19.1]} 27... Rbd6 {[%clk 0:00:34.9]} 28. Rdf1 {[%clk
0:00:11.2]} 28... R8d7 {[%clk 0:00:35.3]} 29. Rxd6 {[%clk 0:00:05.7]} 29... Rxd6
{[%clk 0:00:36.2]} 30. Rf6 {[%clk 0:00:06.2]} 30... Re6 {[%clk 0:00:29.8]} 31.
Rxe6 {[%clk 0:00:03.5]} 31... fxe6 {[%clk 0:00:30.7]} 32. Kf2 {[%clk 0:00:04.1]}
32... Kxg7 {[%clk 0:00:31.1]} 33. Ke3 {[%clk 0:00:04.7]} 33... Kg6 {[%clk
0:00:31.6]} 34. h4 {[%clk 0:00:05.2]} 34... Kh5 {[%clk 0:00:30.8]} 35. a4 {[%clk
0:00:05.1]} 35... Kxh4 {[%clk 0:00:30.1]} 36. axb5 {[%clk 0:00:05.4]} 36... axb5
{[%clk 0:00:31]} 37. g6 {[%clk 0:00:05]} 37... hxg6 {[%clk 0:00:30.6]} 38. Bd1
{[%clk 0:00:05.8]} 38... g5 {[%clk 0:00:29.1]} 39. Be2 {[%clk 0:00:06.7]} 39...
g4 {[%clk 0:00:17.2]} 40. Bxb5 {[%clk 0:00:06.6]} 40... g3 {[%clk 0:00:17.7]}
41. Bf1 {[%clk 0:00:06.3]} 41... g2 {[%clk 0:00:18.1]} 42. Bxg2 {[%clk
0:00:06.7]} 42... Bxg2 {[%clk 0:00:19]} 43. b4 {[%clk 0:00:06.3]} 43... Bf1
{[%clk 0:00:17.3]} 44. Kf2 {[%clk 0:00:02.9]} 44... Bb5 {[%clk 0:00:16.4]} 45.
Ke3 {[%clk 0:00:03.4]} 45... Kg4 {[%clk 0:00:16.2]} 46. Kf2 {[%clk 0:00:02.3]}
46... Kf4 {[%clk 0:00:16.5]} 47. Ke1 {[%clk 0:00:02.4]} 47... Ke4 {[%clk
0:00:16.9]} 48. Kd2 {[%clk 0:00:02.7]} 48... Kf3 {[%clk 0:00:15.4]} 49. Kc2
{[%clk 0:00:03.1]} 49... e4 {[%clk 0:00:15]} 50. Kd2 {[%clk 0:00:03.6]} 50...
Kf2 {[%clk 0:00:14.3]} 51. c4 {[%clk 0:00:02.7]} 51... e3+ {[%clk 0:00:15.2]}
52. Kd1 {[%clk 0:00:02.5]} 52... Bxc4 {[%clk 0:00:15.3]} 0-1

[Event "*** SCC Grand Prix: Titled Tuesday Blitz"]
[Site "Chess.com"]
[Date "2020.09.29"]
[Round "3"]
[White "Sibelephant"]
[Black "Pultis"]
[Result "0-1"]
[WhiteElo "3046"]
[BlackElo "2725"]
[TimeControl "180+1"]
[EndTime "10:28:15 PDT"]
[Termination "Pultis won by resignation"]

1. c4 {[%clk 0:02:59.6]} 1... c6 {[%clk 0:02:59.4]} 2. e4 {[%clk 0:02:59.1]}
2... d5 {[%clk 0:02:59.2]} 3. exd5 {[%clk 0:02:59.1]} 3... cxd5 {[%clk
0:03:00.1]} 4. d4 {[%clk 0:02:59.6]} 4... Nf6 {[%clk 0:02:59.9]} 5. Nc3 {[%clk
0:03:00.2]} 5... Nc6 {[%clk 0:03:00.3]} 6. Bf4 {[%clk 0:02:59.4]} 6... e6 {[%clk
0:02:43]} 7. c5 {[%clk 0:02:57.4]} 7... Ne4 {[%clk 0:02:23.9]} 8. Nf3 {[%clk
0:02:30.7]} 8... Nxc3 {[%clk 0:02:04]} 9. bxc3 {[%clk 0:02:30.2]} 9... g6 {[%clk
0:02:02.5]} 10. Bb5 {[%clk 0:02:16]} 10... Bd7 {[%clk 0:01:59.5]} 11. Rb1 {[%clk
0:01:53.4]} 11... Bg7 {[%clk 0:01:44]} 12. h4 {[%clk 0:01:43.3]} 12... O-O
{[%clk 0:01:27]} 13. h5 {[%clk 0:01:42.5]} 13... Qa5 {[%clk 0:01:27.6]} 14. Qd2
{[%clk 0:01:32.8]} 14... Rfe8 {[%clk 0:01:23.6]} 15. hxg6 {[%clk 0:01:31.8]}
15... hxg6 {[%clk 0:01:22.5]} 16. Bh6 {[%clk 0:01:31.9]} 16... Bf6 {[%clk
0:01:11.3]} 17. Qf4 {[%clk 0:01:10]} 17... Qxc3+ {[%clk 0:01:09.8]} 18. Kf1
{[%clk 0:01:10.3]} 18... Be7 {[%clk 0:00:55.7]} 19. Bg5 {[%clk 0:01:07.4]} 19...
Nxd4 {[%clk 0:00:44.1]} 20. Nxd4 {[%clk 0:00:12.3]} 20... Bxg5 {[%clk
0:00:38.8]} 21. Qe5 {[%clk 0:00:06]} 21... Bxb5+ {[%clk 0:00:33.2]} 22. Rxb5
{[%clk 0:00:04.6]} 22... Qc1+ {[%clk 0:00:08.4]} 23. Ke2 {[%clk 0:00:04.4]}
23... Qxh1 {[%clk 0:00:06.5]} 24. Qxg5 {[%clk 0:00:04.8]} 24... e5 {[%clk
0:00:06]} 25. Nf5 {[%clk 0:00:04.9]} 25... Qh5+ {[%clk 0:00:03.4]} 26. Qxh5
{[%clk 0:00:05.1]} 26... gxh5 {[%clk 0:00:04.3]} 27. Nd6 {[%clk 0:00:05.7]}
27... Re7 {[%clk 0:00:04.4]} 28. Nxb7 {[%clk 0:00:06]} 28... Rb8 {[%clk
0:00:04.3]} 29. c6 {[%clk 0:00:06.6]} 29... Rc7 {[%clk 0:00:05]} 30. Rc5 {[%clk
0:00:06.8]} 30... Kg7 {[%clk 0:00:03.9]} 31. Nd6 {[%clk 0:00:06.5]} 31... Kf6
{[%clk 0:00:02.1]} 32. Nb5 {[%clk 0:00:06.8]} 32... Rxb5 {[%clk 0:00:02.3]} 33.
Rxb5 {[%clk 0:00:07.7]} 33... Ke6 {[%clk 0:00:02.1]} 34. Ra5 {[%clk 0:00:06.2]}
34... Kd6 {[%clk 0:00:01.9]} 35. Ra6 {[%clk 0:00:06.6]} 35... f6 {[%clk
0:00:02.5]} 36. a4 {[%clk 0:00:06.2]} 36... Rxc6 {[%clk 0:00:02.7]} 37. Rxa7
{[%clk 0:00:06.7]} 37... Rc2+ {[%clk 0:00:03.2]} 38. Ke1 {[%clk 0:00:05.3]}
38... Ke6 {[%clk 0:00:03.6]} 39. a5 {[%clk 0:00:05.7]} 39... Ra2 {[%clk
0:00:03.9]} 40. a6 {[%clk 0:00:06]} 40... Kf5 {[%clk 0:00:04.4]} 41. Ra8 {[%clk
0:00:06.1]} 41... h4 {[%clk 0:00:04.5]} 42. a7 {[%clk 0:00:04.6]} 42... d4
{[%clk 0:00:04.9]} 43. f3 {[%clk 0:00:02.7]} 43... Kf4 {[%clk 0:00:04.9]} 44.
Kd1 {[%clk 0:00:03]} 44... Ke3 {[%clk 0:00:04]} 45. Kc1 {[%clk 0:00:03.5]} 45...
d3 {[%clk 0:00:04.2]} 46. Kb1 {[%clk 0:00:03.9]} 46... Ra6 {[%clk 0:00:04.2]}
47. Kb2 {[%clk 0:00:04.2]} 47... d2 {[%clk 0:00:04.3]} 48. Kc2 {[%clk
0:00:04.5]} 48... Rc6+ {[%clk 0:00:04.6]} 0-1

[Event "*** SCC Grand Prix: Titled Tuesday Blitz"]
[Site "Chess.com"]
[Date "2020.09.29"]
[Round "3"]
[White "ALeks_Ivlev"]
[Black "FM_VS99"]
[Result "0-1"]
[WhiteElo "2539"]
[BlackElo "2385"]
[TimeControl "180+1"]
[EndTime "10:28:17 PDT"]
[Termination "FM_VS99 won by checkmate"]

1. d4 {[%clk 0:02:59.3]} 1... g6 {[%clk 0:03:00.9]} 2. c4 {[%clk 0:02:50]} 2...
Bg7 {[%clk 0:03:01.1]} 3. Nc3 {[%clk 0:02:50.5]} 3... d6 {[%clk 0:03:01.6]} 4.
e4 {[%clk 0:02:50.9]} 4... e5 {[%clk 0:03:01.6]} 5. d5 {[%clk 0:02:50.8]} 5...
a5 {[%clk 0:02:59.7]} 6. Be3 {[%clk 0:02:43.7]} 6... Na6 {[%clk 0:02:57.9]} 7.
h4 {[%clk 0:02:43]} 7... h5 {[%clk 0:02:57.7]} 8. Be2 {[%clk 0:02:41.6]} 8...
Bh6 {[%clk 0:02:57.1]} 9. Qd2 {[%clk 0:02:41.5]} 9... Bxe3 {[%clk 0:02:56.8]}
10. Qxe3 {[%clk 0:02:41.8]} 10... Nf6 {[%clk 0:02:57.3]} 11. O-O-O {[%clk
0:02:40.3]} 11... Nc5 {[%clk 0:02:56.9]} 12. f3 {[%clk 0:02:39.2]} 12... a4
{[%clk 0:02:51.9]} 13. Nh3 {[%clk 0:02:39.2]} 13... Bxh3 {[%clk 0:02:51.1]} 14.
Rxh3 {[%clk 0:02:38.5]} 14... Qd7 {[%clk 0:02:43.9]} 15. Kb1 {[%clk 0:02:23.5]}
15... O-O-O {[%clk 0:02:43.5]} 16. Rhh1 {[%clk 0:02:16.3]} 16... Kb8 {[%clk
0:02:43.3]} 17. Rhg1 {[%clk 0:02:16.2]} 17... Rdg8 {[%clk 0:02:40.9]} 18. g4
{[%clk 0:02:08.6]} 18... hxg4 {[%clk 0:02:34.1]} 19. fxg4 {[%clk 0:02:08.8]}
19... Qd8 {[%clk 0:02:21.3]} 20. g5 {[%clk 0:01:59.5]} 20... Nh5 {[%clk
0:02:20.5]} 21. Bxh5 {[%clk 0:01:18.3]} 21... Rxh5 {[%clk 0:02:19.8]} 22. Qf2
{[%clk 0:01:11]} 22... Qe8 {[%clk 0:02:11.3]} 23. Rdf1 {[%clk 0:01:09.5]} 23...
Rg7 {[%clk 0:02:10]} 24. Rg4 {[%clk 0:00:44.4]} 24... Rgh7 {[%clk 0:02:08.5]}
25. Kc2 {[%clk 0:00:39.5]} 25... Qd7 {[%clk 0:02:02.4]} 26. Qg3 {[%clk
0:00:39.3]} 26... Na6 {[%clk 0:02:01.3]} 27. a3 {[%clk 0:00:38]} 27... Nc5
{[%clk 0:02:00.6]} 28. Rf6 {[%clk 0:00:38.3]} 28... Nb3 {[%clk 0:02:00]} 29. Kb1
{[%clk 0:00:34.9]} 29... Nd4 {[%clk 0:01:59.4]} 30. Ka2 {[%clk 0:00:31.8]} 30...
Qc8 {[%clk 0:01:30.1]} 31. Qg2 {[%clk 0:00:27.4]} 31... b6 {[%clk 0:01:28.9]}
32. Nxa4 {[%clk 0:00:23.8]} 32... Qa6 {[%clk 0:01:18.7]} 33. b3 {[%clk 0:00:24]}
33... b5 {[%clk 0:01:19]} 34. Nc5 {[%clk 0:00:20.1]} 34... Qa7 {[%clk
0:01:14.4]} 35. Nd7+ {[%clk 0:00:19.3]} 35... Kc8 {[%clk 0:01:14]} 36. Nf8
{[%clk 0:00:19.5]} 36... Rg7 {[%clk 0:01:07]} 37. cxb5 {[%clk 0:00:19.6]} 37...
Nxb5 {[%clk 0:01:06]} 38. Qf2 {[%clk 0:00:20]} 38... Qxa3+ {[%clk 0:01:04.1]}
39. Kb1 {[%clk 0:00:20.3]} 39... Qxb3+ {[%clk 0:00:59.4]} 40. Kc1 {[%clk
0:00:20.5]} 40... Nd4 {[%clk 0:00:48.2]} 41. Qb2 {[%clk 0:00:19.1]} 41... Qe3+
{[%clk 0:00:36.2]} 42. Kb1 {[%clk 0:00:19.3]} 42... Nb3 {[%clk 0:00:34.1]} 43.
Ka2 {[%clk 0:00:19.2]} 43... Nc1+ {[%clk 0:00:28.5]} 44. Kb1 {[%clk 0:00:19.1]}
44... Nd3 {[%clk 0:00:24.7]} 45. Qa3 {[%clk 0:00:19.4]} 45... Qb6+ {[%clk
0:00:19]} 46. Kc2 {[%clk 0:00:19.8]} 46... Nb4+ {[%clk 0:00:18.5]} 47. Kc3
{[%clk 0:00:19.1]} 47... Na6 {[%clk 0:00:18.9]} 48. Qb3 {[%clk 0:00:18.9]} 48...
Qc5+ {[%clk 0:00:18.6]} 49. Qc4 {[%clk 0:00:19]} 49... Qe3+ {[%clk 0:00:18.3]}
50. Kb2 {[%clk 0:00:18.8]} 50... Qd2+ {[%clk 0:00:17.7]} 51. Kb3 {[%clk
0:00:18.9]} 51... Nc5+ {[%clk 0:00:17.5]} 52. Ka3 {[%clk 0:00:19.5]} 52... Qe3+
{[%clk 0:00:17.1]} 53. Ka2 {[%clk 0:00:19.5]} 53... Qf2+ {[%clk 0:00:17]} 54.
Kb1 {[%clk 0:00:19]} 54... Qe1+ {[%clk 0:00:16.8]} 55. Ka2 {[%clk 0:00:19.2]}
55... Qd2+ {[%clk 0:00:17.2]} 56. Ka3 {[%clk 0:00:19.4]} 56... Qe3+ {[%clk
0:00:16.6]} 57. Qb3 {[%clk 0:00:19.7]} 57... Qxb3# {[%clk 0:00:16]} 0-1

[Event "*** SCC Grand Prix: Titled Tuesday Blitz"]
[Site "Chess.com"]
[Date "2020.09.29"]
[Round "3"]
[White "artichaud"]
[Black "RaphCamora"]
[Result "0-1"]
[WhiteElo "2194"]
[BlackElo "2398"]
[TimeControl "180+1"]
[EndTime "10:28:18 PDT"]
[Termination "RaphCamora won on time"]

1. e4 {[%clk 0:03:00]} 1... c5 {[%clk 0:02:59.7]} 2. Nf3 {[%clk 0:02:59.3]} 2...
Nc6 {[%clk 0:02:59.3]} 3. d4 {[%clk 0:02:57.8]} 3... cxd4 {[%clk 0:02:58.8]} 4.
Nxd4 {[%clk 0:02:58.7]} 4... Nf6 {[%clk 0:02:58.9]} 5. Nc3 {[%clk 0:02:57.8]}
5... e5 {[%clk 0:02:59.1]} 6. Ndb5 {[%clk 0:02:57.7]} 6... d6 {[%clk 0:02:58.8]}
7. Bg5 {[%clk 0:02:58]} 7... a6 {[%clk 0:02:58.2]} 8. Na3 {[%clk 0:02:58]} 8...
b5 {[%clk 0:02:58.5]} 9. Nd5 {[%clk 0:02:58.1]} 9... Be7 {[%clk 0:02:58.5]} 10.
Bxf6 {[%clk 0:02:58.7]} 10... Bxf6 {[%clk 0:02:59.4]} 11. c3 {[%clk 0:02:57.2]}
11... Rb8 {[%clk 0:02:58.6]} 12. Be2 {[%clk 0:02:57.1]} 12... Bg5 {[%clk
0:02:58.6]} 13. O-O {[%clk 0:02:56.5]} 13... O-O {[%clk 0:02:58]} 14. Qd3 {[%clk
0:02:55.9]} 14... Be6 {[%clk 0:02:56.7]} 15. Rfd1 {[%clk 0:02:53.8]} 15... b4
{[%clk 0:02:35.6]} 16. Nc4 {[%clk 0:02:52.8]} 16... bxc3 {[%clk 0:02:31]} 17.
bxc3 {[%clk 0:02:53.7]} 17... f5 {[%clk 0:02:25]} 18. Bf3 {[%clk 0:02:49.7]}
18... Kh8 {[%clk 0:02:16.8]} 19. exf5 {[%clk 0:02:46.9]} 19... Bxf5 {[%clk
0:02:15.1]} 20. Be4 {[%clk 0:02:47]} 20... Bxe4 {[%clk 0:02:14]} 21. Qxe4 {[%clk
0:02:46.7]} 21... Na7 {[%clk 0:01:53.1]} 22. Nb4 {[%clk 0:02:25.3]} 22... Rf4
{[%clk 0:01:47.9]} 23. Qe2 {[%clk 0:02:24.8]} 23... a5 {[%clk 0:01:25.2]} 24.
Nd5 {[%clk 0:02:15.9]} 24... Rf8 {[%clk 0:01:19.6]} 25. a4 {[%clk 0:02:07.1]}
25... Rc8 {[%clk 0:00:50.2]} 26. Rab1 {[%clk 0:01:53.4]} 26... Rb8 {[%clk
0:00:34.2]} 27. Rxb8 {[%clk 0:01:50]} 27... Qxb8 {[%clk 0:00:35.1]} 28. Nxa5
{[%clk 0:01:50.4]} 28... Qe8 {[%clk 0:00:30.6]} 29. Nb7 {[%clk 0:01:26.3]} 29...
Qxa4 {[%clk 0:00:28.8]} 30. Nxd6 {[%clk 0:01:25.2]} 30... Nc6 {[%clk 0:00:24.4]}
31. Ne4 {[%clk 0:01:18.9]} 31... Bd8 {[%clk 0:00:23.3]} 32. g3 {[%clk
0:01:10.5]} 32... h6 {[%clk 0:00:23]} 33. h4 {[%clk 0:01:08.8]} 33... Ba5 {[%clk
0:00:20.5]} 34. Rc1 {[%clk 0:01:02.8]} 34... Qb3 {[%clk 0:00:19.6]} 35. Ne3
{[%clk 0:00:59.8]} 35... Bb6 {[%clk 0:00:19.4]} 36. Qc2 {[%clk 0:00:46]} 36...
Qf7 {[%clk 0:00:18]} 37. Re1 {[%clk 0:00:43]} 37... Qf3 {[%clk 0:00:17.7]} 38.
Nd5 {[%clk 0:00:35.8]} 38... Ba7 {[%clk 0:00:16]} 39. Qe2 {[%clk 0:00:33.6]}
39... Qf7 {[%clk 0:00:14]} 40. Rd1 {[%clk 0:00:30.7]} 40... Rd8 {[%clk
0:00:12.3]} 41. Ne3 {[%clk 0:00:27.9]} 41... Rf8 {[%clk 0:00:12.2]} 42. Rf1
{[%clk 0:00:12.7]} 42... Ne7 {[%clk 0:00:11.5]} 43. Qc4 {[%clk 0:00:11.8]} 43...
Qg6 {[%clk 0:00:11]} 44. Qa4 {[%clk 0:00:09]} 44... Bxe3 {[%clk 0:00:09.9]} 45.
fxe3 {[%clk 0:00:09.2]} 45... Rxf1+ {[%clk 0:00:10]} 46. Kxf1 {[%clk 0:00:10.1]}
46... Nf5 {[%clk 0:00:10.5]} 47. Kf2 {[%clk 0:00:08.4]} 47... Qg4 {[%clk
0:00:10.1]} 48. Qe8+ {[%clk 0:00:05.6]} 48... Kh7 {[%clk 0:00:09.9]} 0-1

[Event "*** SCC Grand Prix: Titled Tuesday Blitz"]
[Site "Chess.com"]
[Date "2020.09.29"]
[Round "3"]
[White "Jumbo"]
[Black "lachesisQ"]
[Result "0-1"]
[WhiteElo "2709"]
[BlackElo "3108"]
[TimeControl "180+1"]
[EndTime "10:28:19 PDT"]
[Termination "lachesisQ won by resignation"]

1. e4 {[%clk 0:03:00.9]} 1... e6 {[%clk 0:02:58.5]} 2. d4 {[%clk 0:03:00.1]}
2... d5 {[%clk 0:02:57.5]} 3. Nd2 {[%clk 0:03:00.7]} 3... a5 {[%clk 0:02:56.6]}
4. h4 {[%clk 0:02:55.1]} 4... a4 {[%clk 0:02:54.6]} 5. a3 {[%clk 0:02:52.9]}
5... c5 {[%clk 0:02:53.7]} 6. Ngf3 {[%clk 0:02:45.3]} 6... Nc6 {[%clk
0:02:52.4]} 7. Bb5 {[%clk 0:02:29.6]} 7... Qb6 {[%clk 0:02:43.6]} 8. c4 {[%clk
0:02:24.3]} 8... dxc4 {[%clk 0:02:36.8]} 9. Bxa4 {[%clk 0:02:23.1]} 9... Qa6
{[%clk 0:02:32]} 10. Bxc6+ {[%clk 0:02:17.9]} 10... Qxc6 {[%clk 0:02:28.8]} 11.
O-O {[%clk 0:02:08.5]} 11... cxd4 {[%clk 0:02:21.1]} 12. Nxd4 {[%clk 0:02:07.6]}
12... Qc5 {[%clk 0:02:16.8]} 13. N2f3 {[%clk 0:01:56.9]} 13... e5 {[%clk
0:02:16.6]} 14. b4 {[%clk 0:01:48.4]} 14... cxb3 {[%clk 0:02:12.2]} 15. Nxb3
{[%clk 0:01:46.7]} 15... Qc7 {[%clk 0:02:12.1]} 16. Bb2 {[%clk 0:01:26.1]} 16...
f6 {[%clk 0:02:10.4]} 17. Rc1 {[%clk 0:01:26.5]} 17... Qd6 {[%clk 0:02:08.5]}
18. Qe2 {[%clk 0:01:23.6]} 18... Qa6 {[%clk 0:02:06.9]} 19. Qe3 {[%clk
0:01:20.7]} 19... Nh6 {[%clk 0:02:00.3]} 20. Rfd1 {[%clk 0:01:17.3]} 20... Ng4
{[%clk 0:01:52.2]} 21. Qd2 {[%clk 0:01:16.8]} 21... Be6 {[%clk 0:01:50]} 22. Nc5
{[%clk 0:01:09.8]} 22... Bxc5 {[%clk 0:01:49.3]} 23. Rxc5 {[%clk 0:01:10.7]}
23... O-O {[%clk 0:01:49.5]} 24. Rc7 {[%clk 0:01:08.9]} 24... Qb6 {[%clk
0:01:44.6]} 25. Rdc1 {[%clk 0:00:55.4]} 25... Rfd8 {[%clk 0:01:36.4]} 26. Qe2
{[%clk 0:00:55.6]} 26... h5 {[%clk 0:01:30.7]} 27. Nh2 {[%clk 0:00:54.6]} 27...
Qxf2+ {[%clk 0:01:15.2]} 28. Qxf2 {[%clk 0:00:52.9]} 28... Nxf2 {[%clk
0:01:16.1]} 29. Rxb7 {[%clk 0:00:51.1]} 29... Nxe4 {[%clk 0:01:04.2]} 30. Nf3
{[%clk 0:00:47.8]} 30... Bd5 {[%clk 0:00:56.7]} 31. Rbc7 {[%clk 0:00:46.9]}
31... Rdb8 {[%clk 0:00:56]} 32. R1c2 {[%clk 0:00:47.1]} 32... Rb7 {[%clk
0:00:47]} 33. Rxb7 {[%clk 0:00:41.4]} 33... Bxb7 {[%clk 0:00:47.9]} 34. Rc7
{[%clk 0:00:40.1]} 34... Bd5 {[%clk 0:00:47.2]} 35. Rd7 {[%clk 0:00:40.5]} 35...
Be6 {[%clk 0:00:46.9]} 36. Re7 {[%clk 0:00:40.1]} 36... Bg4 {[%clk 0:00:46.4]}
37. Rb7 {[%clk 0:00:39]} 37... Rd8 {[%clk 0:00:44.2]} 38. a4 {[%clk 0:00:38.1]}
38... Ra8 {[%clk 0:00:43.8]} 39. Rb4 {[%clk 0:00:37.5]} 39... Nc5 {[%clk
0:00:43.7]} 40. Nh2 {[%clk 0:00:34.4]} 40... Nd3 {[%clk 0:00:41.7]} 41. Rb3
{[%clk 0:00:32.4]} 41... Nxb2 {[%clk 0:00:41.9]} 42. Rxb2 {[%clk 0:00:32.8]}
42... Rxa4 {[%clk 0:00:42.1]} 43. Nf1 {[%clk 0:00:33.3]} 43... Kh7 {[%clk
0:00:41.4]} 44. g3 {[%clk 0:00:32.5]} 44... Ra3 {[%clk 0:00:40.7]} 45. Kf2
{[%clk 0:00:32.7]} 45... Rf3+ {[%clk 0:00:36.2]} 46. Kg2 {[%clk 0:00:32.7]}
46... Kg6 {[%clk 0:00:36.9]} 47. Nh2 {[%clk 0:00:29.9]} 47... Ra3 {[%clk
0:00:36.6]} 48. Kf2 {[%clk 0:00:30.2]} 48... Kf5 {[%clk 0:00:35]} 49. Nf1 {[%clk
0:00:28.4]} 49... Rf3+ {[%clk 0:00:34.3]} 50. Kg2 {[%clk 0:00:28.8]} 50... Rd3
{[%clk 0:00:33.7]} 51. Kf2 {[%clk 0:00:27.4]} 51... Ke4 {[%clk 0:00:32.8]} 52.
Rb4+ {[%clk 0:00:26.6]} 52... Rd4 {[%clk 0:00:32.6]} 53. Rb2 {[%clk 0:00:26.3]}
53... g5 {[%clk 0:00:30.2]} 54. Ne3 {[%clk 0:00:23.3]} 54... gxh4 {[%clk
0:00:29.1]} 55. gxh4 {[%clk 0:00:23.6]} 55... f5 {[%clk 0:00:28.7]} 56. Nf1
{[%clk 0:00:20.7]} 56... f4 {[%clk 0:00:28.5]} 57. Nd2+ {[%clk 0:00:21.1]} 57...
Kf5 {[%clk 0:00:28.5]} 58. Nf1 {[%clk 0:00:20.7]} 58... Rd5 {[%clk 0:00:28.4]}
59. Rb8 {[%clk 0:00:18.2]} 59... e4 {[%clk 0:00:27.9]} 60. Rf8+ {[%clk
0:00:18.6]} 60... Ke5 {[%clk 0:00:28.3]} 61. Re8+ {[%clk 0:00:19]} 61... Kd4
{[%clk 0:00:28.5]} 0-1

[Event "*** SCC Grand Prix: Titled Tuesday Blitz"]
[Site "Chess.com"]
[Date "2020.09.29"]
[Round "3"]
[White "RU_B9"]
[Black "Sueetin"]
[Result "1/2-1/2"]
[WhiteElo "1893"]
[BlackElo "2297"]
[TimeControl "180+1"]
[EndTime "10:28:20 PDT"]
[Termination "Game drawn by repetition"]

1. c4 {[%clk 0:03:00.9]} 1... e6 {[%clk 0:02:57.7]} 2. Nc3 {[%clk 0:02:58.6]}
2... d5 {[%clk 0:02:57.3]} 3. e3 {[%clk 0:02:58.8]} 3... Nf6 {[%clk 0:02:56.7]}
4. Nf3 {[%clk 0:02:57.7]} 4... Be7 {[%clk 0:02:50.6]} 5. b3 {[%clk 0:02:56.9]}
5... O-O {[%clk 0:02:46.7]} 6. Bb2 {[%clk 0:02:57.3]} 6... dxc4 {[%clk
0:02:37.6]} 7. Bxc4 {[%clk 0:02:56]} 7... a6 {[%clk 0:02:37.3]} 8. d4 {[%clk
0:02:53.3]} 8... b5 {[%clk 0:02:36.9]} 9. Bd3 {[%clk 0:02:53.2]} 9... Bb7 {[%clk
0:02:34.3]} 10. O-O {[%clk 0:02:51.5]} 10... c5 {[%clk 0:02:33.7]} 11. Qe2
{[%clk 0:02:47.8]} 11... cxd4 {[%clk 0:02:15.4]} 12. exd4 {[%clk 0:02:47.4]}
12... Nc6 {[%clk 0:02:09.6]} 13. Rfd1 {[%clk 0:02:44.4]} 13... Nb4 {[%clk
0:02:08.3]} 14. Bb1 {[%clk 0:02:40.2]} 14... Nbd5 {[%clk 0:01:58.3]} 15. Ne4
{[%clk 0:02:28.2]} 15... Nf4 {[%clk 0:01:46.1]} 16. Nxf6+ {[%clk 0:02:16.7]}
16... Bxf6 {[%clk 0:01:46]} 17. Qe3 {[%clk 0:02:17.1]} 17... Bxf3 {[%clk
0:01:21.9]} 18. Qxf3 {[%clk 0:02:13.1]} 18... Nd5 {[%clk 0:01:21.1]} 19. Be4
{[%clk 0:02:03.4]} 19... Rc8 {[%clk 0:01:19.3]} 20. Rac1 {[%clk 0:01:44.5]}
20... Qd7 {[%clk 0:01:05.9]} 21. Ba3 {[%clk 0:01:33]} 21... b4 {[%clk
0:00:58.9]} 22. Bxd5 {[%clk 0:01:17.4]} 22... Rxc1 {[%clk 0:00:47.9]} 23. Bxc1
{[%clk 0:01:15.1]} 23... Qxd5 {[%clk 0:00:29.4]} 24. Qxd5 {[%clk 0:01:03.7]}
24... exd5 {[%clk 0:00:30.3]} 25. Kf1 {[%clk 0:00:45.3]} 25... Rc8 {[%clk
0:00:29.6]} 26. Be3 {[%clk 0:00:17]} 26... Rc2 {[%clk 0:00:26.1]} 27. Ra1 {[%clk
0:00:15.8]} 27... h5 {[%clk 0:00:19.5]} 28. Ke1 {[%clk 0:00:15.4]} 28... Kh7
{[%clk 0:00:14.9]} 29. Kd1 {[%clk 0:00:14.9]} 29... Rc6 {[%clk 0:00:14.1]} 30.
Rc1 {[%clk 0:00:13]} 30... Rxc1+ {[%clk 0:00:14]} 31. Kxc1 {[%clk 0:00:13.3]}
31... Kg6 {[%clk 0:00:13.3]} 32. Kc2 {[%clk 0:00:13.9]} 32... Kf5 {[%clk
0:00:13]} 33. Kd3 {[%clk 0:00:14.5]} 33... g5 {[%clk 0:00:10.1]} 34. Bd2 {[%clk
0:00:14.4]} 34... a5 {[%clk 0:00:10]} 35. Bc1 {[%clk 0:00:14.2]} 35... h4 {[%clk
0:00:06.8]} 36. a3 {[%clk 0:00:14.6]} 36... Be7 {[%clk 0:00:05.1]} 37. axb4
{[%clk 0:00:12.8]} 37... axb4 {[%clk 0:00:06]} 38. Bd2 {[%clk 0:00:12.1]} 38...
g4 {[%clk 0:00:04.3]} 39. Be1 {[%clk 0:00:10.3]} 39... Bd6 {[%clk 0:00:03.2]}
40. g3 {[%clk 0:00:08.8]} 40... h3 {[%clk 0:00:02.9]} 41. Bd2 {[%clk 0:00:08.3]}
41... Bc7 {[%clk 0:00:03]} 42. Be3 {[%clk 0:00:08.5]} 42... Bd6 {[%clk 0:00:03]}
43. Bd2 {[%clk 0:00:09.2]} 43... f6 {[%clk 0:00:03.2]} 44. Be3 {[%clk
0:00:09.7]} 44... Kg6 {[%clk 0:00:03.3]} 45. Bd2 {[%clk 0:00:10.4]} 45... f5
{[%clk 0:00:03.4]} 46. Be3 {[%clk 0:00:10.8]} 46... Kf6 {[%clk 0:00:03.2]} 47.
Bf4 {[%clk 0:00:10.6]} 47... Bxf4 {[%clk 0:00:02.4]} 48. gxf4 {[%clk 0:00:10]}
48... Kg6 {[%clk 0:00:02.5]} 49. Ke3 {[%clk 0:00:10.6]} 49... Kh5 {[%clk
0:00:02.8]} 50. Ke2 {[%clk 0:00:10]} 50... Kh4 {[%clk 0:00:02.7]} 51. Ke3 {[%clk
0:00:10.6]} 51... Kh5 {[%clk 0:00:03.1]} 52. Ke2 {[%clk 0:00:10.6]} 52... Kh4
{[%clk 0:00:03.7]} 53. Ke3 {[%clk 0:00:11.2]} 53... Kh5 {[%clk 0:00:04.2]}
1/2-1/2